[Event "Titled Tuesday Blitz November 15 Late 2022"]
[White "Gubajdullin, Alexei"]
[Black "Swiercz, Dariusz"]
[WhiteFideId "4141202"]
[BlackFideId "1126881"]
[WhiteElo "2230"]
[BlackElo "2627"]
[Result "0-1"]
[Round "08"]
[TimeControl "180+1"]
[Date "2022.11.15"]
[WhiteClock "0:00:02"]
[BlackClock "0:00:04"]

1. Nf3 {[%clk 0:03:00]}  Nf6 {[%clk 0:02:59]} 2. d4 {[%clk 0:03:00]}  g6 {[%clk 0:02:59]} 3. Bf4 {[%clk 0:02:59]}  Bg7 {[%clk 0:02:59]} 4. e3 {[%clk 0:03:00]}  O-O {[%clk 0:02:58]} 5. Be2 {[%clk 0:03:00]}  d6 {[%clk 0:02:56]} 6. O-O {[%clk 0:03:00]}  Nfd7 {[%clk 0:02:57]} 7. h3 {[%clk 0:03:00]}  e5 {[%clk 0:02:57]} 8. Bh2 {[%clk 0:03:00]}  Nc6 {[%clk 0:02:58]} 9. c4 {[%clk 0:02:59]}  e4 {[%clk 0:02:57]} 10. Nfd2 {[%clk 0:02:58]}  f5 {[%clk 0:02:58]} 11. Nc3 {[%clk 0:02:58]}  Nf6 {[%clk 0:02:59]} 12. Qa4 {[%clk 0:02:56]}  g5 {[%clk 0:02:54]} 13. b4 {[%clk 0:02:55]}  Ne7 {[%clk 0:02:53]} 14. b5 {[%clk 0:02:54]}  Ng6 {[%clk 0:02:53]} 15. b6 {[%clk 0:02:52]}  cxb6 {[%clk 0:02:38]} 16. Nb5 {[%clk 0:02:51]}  f4 {[%clk 0:02:35]} 17. Qa3 {[%clk 0:02:39]}  g4 {[%clk 0:02:02]} 18. Qxd6 {[%clk 0:02:02]}  gxh3 {[%clk 0:01:18]} 19. Qxd8 {[%clk 0:01:43]}  Rxd8 {[%clk 0:01:19]} 20. g3 {[%clk 0:01:14]}  fxe3 {[%clk 0:01:06]} 21. fxe3 {[%clk 0:01:13]}  Bh6 {[%clk 0:01:06]} 22. Rxf6 {[%clk 0:00:48]}  Bxe3+ {[%clk 0:01:06]} 23. Kh1 {[%clk 0:00:48]}  Bxd2 {[%clk 0:01:07]} 24. c5 {[%clk 0:00:42]}  Bd7 {[%clk 0:00:37]} 25. Bc4+ {[%clk 0:00:39]}  Kh8 {[%clk 0:00:30]} 26. Nd6 {[%clk 0:00:38]}  Bg4 {[%clk 0:00:25]} 27. Bg1 {[%clk 0:00:16]}  Rf8 {[%clk 0:00:18]} 28. Nxe4 {[%clk 0:00:08]}  Bh6 {[%clk 0:00:11]} 29. Kh2 {[%clk 0:00:06]}  Bg7 {[%clk 0:00:10]} 30. Rxf8+ {[%clk 0:00:05]}  Rxf8 {[%clk 0:00:11]} 31. Rf1 {[%clk 0:00:02]}  Rxf1 {[%clk 0:00:07]} 32. Bxf1 {[%clk 0:00:02]}  Ne7 {[%clk 0:00:06]} 33. cxb6 {[%clk 0:00:02]}  axb6 {[%clk 0:00:07]} 34. Bxh3 {[%clk 0:00:02]}  Bf3 {[%clk 0:00:04]} 35. Bg2 {[%clk 0:00:02]}  Bg4 {[%clk 0:00:04]} 36. Bh3 {[%clk 0:00:02]}  Be2 {[%clk 0:00:04]} 37. Bg2 {[%clk 0:00:03]}  Bc4 {[%clk 0:00:04]} 38. Ng5 {[%clk 0:00:03]}  Bxa2 {[%clk 0:00:03]} 39. d5 {[%clk 0:00:03]}  Bxd5 {[%clk 0:00:03]} 40. Bxb6 {[%clk 0:00:02]}  Bxg2 {[%clk 0:00:03]} 41. Kxg2 {[%clk 0:00:02]}  Nd5 {[%clk 0:00:04]} 0-1


[Site "https://www.chess.com"]

[Event "Titled Tuesday Blitz November 15 Late 2022"]
[White "Guz, Ari"]
[Black "Salman, Pavel"]
[WhiteFideId "2825759"]
[BlackFideId "24153753"]
[WhiteElo "2205"]
[BlackElo "2187"]
[Result "0-1"]
[Round "08"]
[TimeControl "180+1"]
[Date "2022.11.16"]
[WhiteClock "0:00:04"]
[BlackClock "0:00:05"]

1. e4 {[%clk 0:02:53]}  c5 {[%clk 0:02:59]} 2. Nf3 {[%clk 0:02:52]}  e6 {[%clk 0:03:00]} 3. c3 {[%clk 0:02:52]}  Nf6 {[%clk 0:02:59]} 4. e5 {[%clk 0:02:53]}  Nd5 {[%clk 0:03:00]} 5. d4 {[%clk 0:02:53]}  cxd4 {[%clk 0:03:01]} 6. cxd4 {[%clk 0:02:54]}  b6 {[%clk 0:03:01]} 7. Nc3 {[%clk 0:02:54]}  Nxc3 {[%clk 0:03:02]} 8. bxc3 {[%clk 0:02:54]}  Qc7 {[%clk 0:03:02]} 9. Bd2 {[%clk 0:02:54]}  Be7 {[%clk 0:03:03]} 10. Bd3 {[%clk 0:02:54]}  Ba6 {[%clk 0:03:03]} 11. Bxa6 {[%clk 0:02:53]}  Nxa6 {[%clk 0:03:04]} 12. Qe2 {[%clk 0:02:53]}  Qb7 {[%clk 0:03:05]} 13. h4 {[%clk 0:02:52]}  h6 {[%clk 0:03:02]} 14. Rh3 {[%clk 0:02:51]}  Nc7 {[%clk 0:02:49]} 15. Rg3 {[%clk 0:02:49]}  g6 {[%clk 0:02:42]} 16. Kf1 {[%clk 0:02:42]}  Rc8 {[%clk 0:02:27]} 17. Kg1 {[%clk 0:02:39]}  Nd5 {[%clk 0:02:18]} 18. c4 {[%clk 0:02:38]}  Qa6 {[%clk 0:02:13]} 19. Rc1 {[%clk 0:02:37]}  Qxa2 {[%clk 0:01:53]} 20. Qd3 {[%clk 0:02:30]}  Nb4 {[%clk 0:01:40]} 21. Bxb4 {[%clk 0:02:02]}  Bxb4 {[%clk 0:01:41]} 22. Rc2 {[%clk 0:01:54]}  Qa6 {[%clk 0:01:27]} 23. Rg4 {[%clk 0:01:44]}  Be7 {[%clk 0:01:20]} 24. Nd2 {[%clk 0:01:40]}  h5 {[%clk 0:01:13]} 25. Rf4 {[%clk 0:01:39]}  g5 {[%clk 0:01:09]} 26. Rf3 {[%clk 0:01:19]}  g4 {[%clk 0:01:03]} 27. Rf4 {[%clk 0:01:15]}  Bxh4 {[%clk 0:00:58]} 28. Ne4 {[%clk 0:01:15]}  Be7 {[%clk 0:00:59]} 29. d5 {[%clk 0:01:14]}  Qa1+ {[%clk 0:00:58]} 30. Kh2 {[%clk 0:01:14]}  Qxe5 {[%clk 0:00:57]} 31. g3 {[%clk 0:01:14]}  h4 {[%clk 0:00:52]} 32. Kg2 {[%clk 0:00:59]}  hxg3 {[%clk 0:00:47]} 33. Qxg3 {[%clk 0:00:58]}  exd5 {[%clk 0:00:45]} 34. Nc3 {[%clk 0:00:50]}  Rxc4 {[%clk 0:00:39]} 35. Re2 {[%clk 0:00:20]}  Qxf4 {[%clk 0:00:32]} 36. Qxf4 {[%clk 0:00:19]}  Rxf4 {[%clk 0:00:33]} 37. Nxd5 {[%clk 0:00:20]}  Rd4 {[%clk 0:00:20]} 38. Nxe7 {[%clk 0:00:20]}  Kd8 {[%clk 0:00:19]} 39. Nf5 {[%clk 0:00:19]}  Ra4 {[%clk 0:00:18]} 40. Nd6 {[%clk 0:00:18]}  Kc7 {[%clk 0:00:17]} 41. Nxf7 {[%clk 0:00:17]}  Rf8 {[%clk 0:00:17]} 42. Nh6 {[%clk 0:00:17]}  a5 {[%clk 0:00:17]} 43. Re7 {[%clk 0:00:14]}  b5 {[%clk 0:00:15]} 44. Rg7 {[%clk 0:00:14]}  Raf4 {[%clk 0:00:14]} 45. Nxg4 {[%clk 0:00:13]}  a4 {[%clk 0:00:14]} 46. Ne5 {[%clk 0:00:12]}  Rd4 {[%clk 0:00:14]} 47. Nf3 {[%clk 0:00:11]}  Rd6 {[%clk 0:00:11]} 48. Rg5 {[%clk 0:00:10]}  Kb6 {[%clk 0:00:11]} 49. Ne5 {[%clk 0:00:09]}  a3 {[%clk 0:00:09]} 50. Rg3 {[%clk 0:00:08]}  a2 {[%clk 0:00:08]} 51. Ra3 {[%clk 0:00:08]}  Rd2 {[%clk 0:00:08]} 52. Kg3 {[%clk 0:00:06]}  Rg8+ {[%clk 0:00:07]} 53. Kf3 {[%clk 0:00:05]}  Rc8 {[%clk 0:00:07]} 54. Ke3 {[%clk 0:00:05]}  Rcc2 {[%clk 0:00:07]} 55. f4 {[%clk 0:00:04]}  Rh2 {[%clk 0:00:06]} 56. Kd4 {[%clk 0:00:04]}  Rc1 {[%clk 0:00:05]} 57. Nxd7+ {[%clk 0:00:03]}  Kc7 {[%clk 0:00:05]} 58. Ne5 {[%clk 0:00:03]}  a1=Q+ {[%clk 0:00:05]} 59. Rxa1 {[%clk 0:00:04]}  Rxa1 {[%clk 0:00:05]} 60. Kc5 {[%clk 0:00:05]}  Rc1+ {[%clk 0:00:05]} 61. Kxb5 {[%clk 0:00:05]}  Rf2 {[%clk 0:00:06]} 62. Nd3 {[%clk 0:00:05]}  Rb1+ {[%clk 0:00:07]} 63. Kc4 {[%clk 0:00:05]}  Rd2 {[%clk 0:00:06]} 64. Ne5 {[%clk 0:00:05]}  Rc1+ {[%clk 0:00:06]} 65. Kb3 {[%clk 0:00:05]}  Rh2 {[%clk 0:00:07]} 66. Nd3 {[%clk 0:00:05]}  Rg1 {[%clk 0:00:06]} 67. Kc4 {[%clk 0:00:05]}  Rg3 {[%clk 0:00:06]} 68. Kd4 {[%clk 0:00:04]}  Rd2 {[%clk 0:00:05]} 0-1


[Site "https://www.chess.com"]

[Event "Titled Tuesday Blitz November 15 Late 2022"]
[White "Har-Zvi, Ronen"]
[Black "Goroshkov, Maksym"]
[WhiteFideId "2801485"]
[BlackFideId "14142716"]
[WhiteElo "2523"]
[BlackElo "2257"]
[Result "1/2-1/2"]
[Round "08"]
[TimeControl "180+1"]
[Date "2022.11.15"]
[WhiteClock "0:00:06"]
[BlackClock "0:00:12"]

1. Nf3 {[%clk 0:02:55]}  Nf6 {[%clk 0:02:55]} 2. c4 {[%clk 0:02:55]}  g6 {[%clk 0:02:56]} 3. Nc3 {[%clk 0:02:55]}  Bg7 {[%clk 0:02:56]} 4. g3 {[%clk 0:02:56]}  O-O {[%clk 0:02:57]} 5. Bg2 {[%clk 0:02:57]}  d6 {[%clk 0:02:57]} 6. O-O {[%clk 0:02:57]}  c5 {[%clk 0:02:57]} 7. d4 {[%clk 0:02:58]}  Nc6 {[%clk 0:02:54]} 8. dxc5 {[%clk 0:02:58]}  dxc5 {[%clk 0:02:55]} 9. Bf4 {[%clk 0:02:59]}  Be6 {[%clk 0:02:53]} 10. Ne5 {[%clk 0:02:59]}  Nxe5 {[%clk 0:02:51]} 11. Bxe5 {[%clk 0:02:59]}  Qc8 {[%clk 0:02:43]} 12. Qb3 {[%clk 0:02:59]}  b6 {[%clk 0:02:31]} 13. Bxa8 {[%clk 0:02:55]}  Qxa8 {[%clk 0:02:32]} 14. f3 {[%clk 0:02:55]}  Bh6 {[%clk 0:01:57]} 15. Bxf6 {[%clk 0:02:08]}  exf6 {[%clk 0:01:54]} 16. Nd5 {[%clk 0:02:08]}  Bxd5 {[%clk 0:01:45]} 17. cxd5 {[%clk 0:02:08]}  f5 {[%clk 0:01:45]} 18. Rad1 {[%clk 0:01:53]}  Rd8 {[%clk 0:01:43]} 19. d6 {[%clk 0:01:48]}  Bg7 {[%clk 0:01:41]} 20. e3 {[%clk 0:01:48]}  Qc6 {[%clk 0:01:39]} 21. Qd5 {[%clk 0:01:48]}  Qxd5 {[%clk 0:01:30]} 22. Rxd5 {[%clk 0:01:47]}  Bxb2 {[%clk 0:01:31]} 23. d7 {[%clk 0:01:25]}  c4 {[%clk 0:01:29]} 24. Rf2 {[%clk 0:01:08]}  c3 {[%clk 0:01:05]} 25. e4 {[%clk 0:01:00]}  fxe4 {[%clk 0:00:54]} 26. fxe4 {[%clk 0:01:00]}  Kf8 {[%clk 0:00:54]} 27. Kf1 {[%clk 0:00:55]}  Ke7 {[%clk 0:00:49]} 28. Ke1 {[%clk 0:00:52]}  f6 {[%clk 0:00:46]} 29. e5 {[%clk 0:00:34]}  fxe5 {[%clk 0:00:34]} 30. Rxe5+ {[%clk 0:00:25]}  Kxd7 {[%clk 0:00:34]} 31. Rd5+ {[%clk 0:00:25]}  Kc8 {[%clk 0:00:32]} 32. Rxd8+ {[%clk 0:00:26]}  Kxd8 {[%clk 0:00:33]} 33. Kd1 {[%clk 0:00:25]}  Ke7 {[%clk 0:00:27]} 34. Kc2 {[%clk 0:00:20]}  b5 {[%clk 0:00:26]} 35. Rf4 {[%clk 0:00:18]}  a5 {[%clk 0:00:21]} 36. Rh4 {[%clk 0:00:17]}  h5 {[%clk 0:00:20]} 37. g4 {[%clk 0:00:18]}  hxg4 {[%clk 0:00:20]} 38. Rxg4 {[%clk 0:00:19]}  Kf6 {[%clk 0:00:20]} 39. h4 {[%clk 0:00:19]}  b4 {[%clk 0:00:19]} 40. Kb3 {[%clk 0:00:17]}  a4+ {[%clk 0:00:17]} 41. Kc2 {[%clk 0:00:14]}  b3+ {[%clk 0:00:13]} 42. axb3 {[%clk 0:00:14]}  axb3+ {[%clk 0:00:14]} 43. Kxb3 {[%clk 0:00:14]}  Kf5 {[%clk 0:00:13]} 44. Rg5+ {[%clk 0:00:14]}  Kf6 {[%clk 0:00:13]} 45. Kc2 {[%clk 0:00:13]}  Kf7 {[%clk 0:00:12]} 46. Kd3 {[%clk 0:00:13]}  Kf6 {[%clk 0:00:13]} 47. Rg2 {[%clk 0:00:13]}  Kf5 {[%clk 0:00:12]} 48. Rg5+ {[%clk 0:00:12]}  Kf6 {[%clk 0:00:13]} 49. Rc5 {[%clk 0:00:11]}  Ke6 {[%clk 0:00:12]} 50. Ke4 {[%clk 0:00:09]}  Kd6 {[%clk 0:00:12]} 51. Rc4 {[%clk 0:00:10]}  Ke6 {[%clk 0:00:12]} 52. Rc6+ {[%clk 0:00:10]}  Kd7 {[%clk 0:00:13]} 53. Kd5 {[%clk 0:00:08]}  Ke7 {[%clk 0:00:12]} 54. Rc4 {[%clk 0:00:06]}  Kf6 {[%clk 0:00:12]} 55. Ke4 {[%clk 0:00:06]}  Ke6 {[%clk 0:00:12]} 56. Rc6+ {[%clk 0:00:06]}  Kd7 {[%clk 0:00:12]} 57. Rc4 {[%clk 0:00:06]}  Ke6 {[%clk 0:00:12]} 1/2-1/2


[Site "https://www.chess.com"]

[Event "Titled Tuesday Blitz November 15 Late 2022"]
[White "Harshal, Shahi"]
[Black "Souleidis, Georgios"]
[WhiteFideId "5048257"]
[BlackFideId "4206827"]
[WhiteElo "2054"]
[BlackElo "2401"]
[Result "0-1"]
[Round "08"]
[TimeControl "180+1"]
[Date "2022.11.16"]
[WhiteClock "0:00:01"]
[BlackClock "0:00:42"]

1. e4 {[%clk 0:03:00]}  c5 {[%clk 0:02:54]} 2. Nf3 {[%clk 0:02:59]}  e6 {[%clk 0:02:54]} 3. b3 {[%clk 0:02:52]}  a6 {[%clk 0:02:53]} 4. Bb2 {[%clk 0:02:51]}  d5 {[%clk 0:02:51]} 5. exd5 {[%clk 0:02:49]}  exd5 {[%clk 0:02:49]} 6. Be2 {[%clk 0:02:48]}  Nf6 {[%clk 0:02:48]} 7. O-O {[%clk 0:02:47]}  Be7 {[%clk 0:02:47]} 8. d4 {[%clk 0:02:44]}  O-O {[%clk 0:02:45]} 9. dxc5 {[%clk 0:02:35]}  Bxc5 {[%clk 0:02:45]} 10. Nc3 {[%clk 0:01:58]}  Nc6 {[%clk 0:02:30]} 11. a3 {[%clk 0:01:48]}  Bf5 {[%clk 0:02:24]} 12. h3 {[%clk 0:01:29]}  Ba7 {[%clk 0:02:20]} 13. Bd3 {[%clk 0:01:27]}  Ne4 {[%clk 0:02:08]} 14. Bxe4 {[%clk 0:00:42]}  Bxe4 {[%clk 0:02:08]} 15. Re1 {[%clk 0:00:38]}  Re8 {[%clk 0:01:59]} 16. Nxe4 {[%clk 0:00:18]}  dxe4 {[%clk 0:02:00]} 17. Qxd8 {[%clk 0:00:15]}  Raxd8 {[%clk 0:02:01]} 18. Ng5 {[%clk 0:00:11]}  f5 {[%clk 0:01:56]} 19. h4 {[%clk 0:00:06]}  Rd2 {[%clk 0:01:52]} 20. Nh3 {[%clk 0:00:03]}  Rxc2 {[%clk 0:01:52]} 21. Bc1 {[%clk 0:00:03]}  Ne5 {[%clk 0:01:36]} 22. Be3 {[%clk 0:00:01]}  Bxe3 {[%clk 0:01:31]} 23. Rxe3 {[%clk 0:00:02]}  Ng4 {[%clk 0:01:04]} 24. Ree1 {[%clk 0:00:02]}  Rd8 {[%clk 0:01:04]} 25. Rad1 {[%clk 0:00:01]}  Rd3 {[%clk 0:00:42]} 0-1


[Site "https://www.chess.com"]

[Event "Titled Tuesday Blitz November 15 Late 2022"]
[White "Ibarra Jerez, Jose Carlos"]
[Black "Yanchenko, Roman"]
[WhiteFideId "2226332"]
[BlackFideId "4137329"]
[WhiteElo "2638"]
[BlackElo "2489"]
[Result "1-0"]
[Round "08"]
[TimeControl "180+1"]
[Date "2022.11.15"]
[WhiteClock "0:00:05"]
[BlackClock "0:00:02"]

1. e4 {[%clk 0:03:00]}  e6 {[%clk 0:03:00]} 2. d4 {[%clk 0:03:00]}  d5 {[%clk 0:03:01]} 3. Nd2 {[%clk 0:03:00]}  c5 {[%clk 0:03:01]} 4. exd5 {[%clk 0:02:59]}  exd5 {[%clk 0:03:02]} 5. Ngf3 {[%clk 0:02:59]}  Nc6 {[%clk 0:03:02]} 6. Bb5 {[%clk 0:02:59]}  c4 {[%clk 0:03:03]} 7. O-O {[%clk 0:02:58]}  Bd6 {[%clk 0:03:03]} 8. b3 {[%clk 0:02:56]}  cxb3 {[%clk 0:03:04]} 9. c4 {[%clk 0:02:56]}  Ne7 {[%clk 0:03:01]} 10. Qxb3 {[%clk 0:02:53]}  O-O {[%clk 0:03:00]} 11. cxd5 {[%clk 0:02:52]}  Nxd5 {[%clk 0:02:52]} 12. Ne4 {[%clk 0:02:47]}  Bc7 {[%clk 0:02:44]} 13. Bg5 {[%clk 0:02:45]}  Nde7 {[%clk 0:02:26]} 14. Qa3 {[%clk 0:02:05]}  f6 {[%clk 0:02:24]} 15. Bc4+ {[%clk 0:02:00]}  Kh8 {[%clk 0:02:23]} 16. Be3 {[%clk 0:01:55]}  Bf5 {[%clk 0:02:15]} 17. Nc5 {[%clk 0:01:51]}  b6 {[%clk 0:02:03]} 18. Ne6 {[%clk 0:01:49]}  Bxe6 {[%clk 0:02:03]} 19. Bxe6 {[%clk 0:01:50]}  Qd6 {[%clk 0:01:52]} 20. Qxd6 {[%clk 0:01:46]}  Bxd6 {[%clk 0:01:53]} 21. Rac1 {[%clk 0:01:40]}  Nb4 {[%clk 0:01:52]} 22. Nd2 {[%clk 0:01:31]}  Rad8 {[%clk 0:01:34]} 23. Ne4 {[%clk 0:01:31]}  Rfe8 {[%clk 0:01:26]} 24. Bf7 {[%clk 0:01:29]}  Rf8 {[%clk 0:01:26]} 25. Nxd6 {[%clk 0:01:25]}  Rxd6 {[%clk 0:01:25]} 26. Bb3 {[%clk 0:01:19]}  Nbd5 {[%clk 0:01:24]} 27. Rfe1 {[%clk 0:01:12]}  Nf5 {[%clk 0:01:23]} 28. Kf1 {[%clk 0:00:53]}  Rfd8 {[%clk 0:01:18]} 29. g4 {[%clk 0:00:51]}  Nh4 {[%clk 0:01:15]} 30. Ke2 {[%clk 0:00:49]}  Ng6 {[%clk 0:01:08]} 31. Kf3 {[%clk 0:00:48]}  Nb4 {[%clk 0:01:06]} 32. Rc7 {[%clk 0:00:45]}  Nc6 {[%clk 0:01:00]} 33. d5 {[%clk 0:00:40]}  Nb4 {[%clk 0:00:51]} 34. Rxa7 {[%clk 0:00:35]}  Ne5+ {[%clk 0:00:48]} 35. Kg3 {[%clk 0:00:34]}  Nxd5 {[%clk 0:00:48]} 36. Bc1 {[%clk 0:00:24]}  Nd3 {[%clk 0:00:43]} 37. Rd1 {[%clk 0:00:21]}  Nc3 {[%clk 0:00:43]} 38. Rxd3 {[%clk 0:00:16]}  Rxd3+ {[%clk 0:00:44]} 39. Be3 {[%clk 0:00:17]}  Nd1 {[%clk 0:00:25]} 40. Bxd1 {[%clk 0:00:15]}  Rxd1 {[%clk 0:00:25]} 41. Bxb6 {[%clk 0:00:16]}  Rg1+ {[%clk 0:00:22]} 42. Kf3 {[%clk 0:00:16]}  Rb8 {[%clk 0:00:20]} 43. a4 {[%clk 0:00:14]}  h5 {[%clk 0:00:17]} 44. a5 {[%clk 0:00:10]}  hxg4+ {[%clk 0:00:17]} 45. Kf4 {[%clk 0:00:10]}  Kh7 {[%clk 0:00:17]} 46. Kf5 {[%clk 0:00:09]}  Rg2 {[%clk 0:00:16]} 47. Rd7 {[%clk 0:00:08]}  Rxh2 {[%clk 0:00:16]} 48. Kxg4 {[%clk 0:00:08]}  Rg2+ {[%clk 0:00:16]} 49. Kf3 {[%clk 0:00:08]}  Rg5 {[%clk 0:00:16]} 50. Rc7 {[%clk 0:00:06]}  Rb5 {[%clk 0:00:16]} 51. Rc6 {[%clk 0:00:05]}  Kg6 {[%clk 0:00:16]} 52. Kg3 {[%clk 0:00:05]}  Rb4 {[%clk 0:00:15]} 53. Rd6 {[%clk 0:00:05]}  Rb7 {[%clk 0:00:15]} 54. Rc6 {[%clk 0:00:05]}  Ra4 {[%clk 0:00:15]} 55. Rd6 {[%clk 0:00:04]}  Re7 {[%clk 0:00:16]} 56. Rd5 {[%clk 0:00:04]}  Re5 {[%clk 0:00:14]} 57. Rd7 {[%clk 0:00:04]}  Rg5+ {[%clk 0:00:14]} 58. Kf3 {[%clk 0:00:05]}  Rb5 {[%clk 0:00:14]} 59. Re7 {[%clk 0:00:04]}  Rb3+ {[%clk 0:00:14]} 60. Kg2 {[%clk 0:00:04]}  Ra2 {[%clk 0:00:13]} 61. Rd7 {[%clk 0:00:04]}  Rb5 {[%clk 0:00:12]} 62. Rd3 {[%clk 0:00:03]}  Rg5+ {[%clk 0:00:12]} 63. Kh2 {[%clk 0:00:03]}  Ra4 {[%clk 0:00:12]} 64. Rh3 {[%clk 0:00:03]}  Rh5 {[%clk 0:00:10]} 65. Rxh5 {[%clk 0:00:02]}  Kxh5 {[%clk 0:00:11]} 66. Kg3 {[%clk 0:00:03]}  Kg5 {[%clk 0:00:11]} 67. Kf3 {[%clk 0:00:04]}  Kf5 {[%clk 0:00:12]} 68. Ke3 {[%clk 0:00:05]}  g5 {[%clk 0:00:12]} 69. Kd3 {[%clk 0:00:05]}  Ke6 {[%clk 0:00:12]} 70. Kc3 {[%clk 0:00:05]}  Kd5 {[%clk 0:00:13]} 71. Kb3 {[%clk 0:00:06]}  Ra1 {[%clk 0:00:09]} 72. Bd8 {[%clk 0:00:04]}  Ke6 {[%clk 0:00:07]} 73. Kb2 {[%clk 0:00:03]}  Rd1 {[%clk 0:00:06]} 74. Bb6 {[%clk 0:00:04]}  Kd7 {[%clk 0:00:04]} 75. Kc2 {[%clk 0:00:03]}  Ra1 {[%clk 0:00:03]} 76. Kb2 {[%clk 0:00:03]}  Ra4 {[%clk 0:00:03]} 77. Kb3 {[%clk 0:00:03]}  Ra1 {[%clk 0:00:03]} 78. Kb2 {[%clk 0:00:03]}  Re1 {[%clk 0:00:02]} 79. Bd4 {[%clk 0:00:02]}  Re6 {[%clk 0:00:02]} 80. Kc3 {[%clk 0:00:02]}  Kc7 {[%clk 0:00:02]} 81. Kc4 {[%clk 0:00:02]}  Rd6 {[%clk 0:00:01]} 82. Bc5 {[%clk 0:00:02]}  Rc6 {[%clk 0:00:02]} 83. Kb5 {[%clk 0:00:02]}  Kb7 {[%clk 0:00:03]} 84. Bb6 {[%clk 0:00:02]}  Rc2 {[%clk 0:00:03]} 85. a6+ {[%clk 0:00:02]}  Ka8 {[%clk 0:00:04]} 86. Bd4 {[%clk 0:00:03]}  f5 {[%clk 0:00:04]} 87. Kb4 {[%clk 0:00:03]}  g4 {[%clk 0:00:05]} 88. Kb3 {[%clk 0:00:03]}  Re2 {[%clk 0:00:06]} 89. Kc3 {[%clk 0:00:04]}  Re4 {[%clk 0:00:06]} 90. Kd3 {[%clk 0:00:04]}  Re6 {[%clk 0:00:06]} 91. a7 {[%clk 0:00:03]}  f4 {[%clk 0:00:07]} 92. Bc5 {[%clk 0:00:02]}  f3 {[%clk 0:00:07]} 93. Bd4 {[%clk 0:00:02]}  Kb7 {[%clk 0:00:07]} 94. Bc5 {[%clk 0:00:02]}  Re8 {[%clk 0:00:07]} 95. Kd4 {[%clk 0:00:02]}  Kc6 {[%clk 0:00:07]} 96. Kc4 {[%clk 0:00:02]}  Rc8 {[%clk 0:00:07]} 97. Be3 {[%clk 0:00:02]}  Kd6+ {[%clk 0:00:07]} 98. Kd4 {[%clk 0:00:02]}  Ke6 {[%clk 0:00:07]} 99. Ke4 {[%clk 0:00:03]}  Rc4+ {[%clk 0:00:08]} 100. Kd3 {[%clk 0:00:02]}  Ra4 {[%clk 0:00:09]} 101. Bd4 {[%clk 0:00:03]}  Kd5 {[%clk 0:00:09]} 102. Be3 {[%clk 0:00:03]}  Ra3+ {[%clk 0:00:10]} 103. Kd2 {[%clk 0:00:03]}  Ke4 {[%clk 0:00:10]} 104. Bc5 {[%clk 0:00:04]}  Ra4 {[%clk 0:00:09]} 105. Kc3 {[%clk 0:00:04]}  Ra6 {[%clk 0:00:10]} 106. Kc4 {[%clk 0:00:04]}  Ra1 {[%clk 0:00:09]} 107. Kb3 {[%clk 0:00:04]}  Kd5 {[%clk 0:00:09]} 108. Ba3 {[%clk 0:00:04]}  g3 {[%clk 0:00:03]} 109. a8=Q+ {[%clk 0:00:04]}  Kd4 {[%clk 0:00:03]} 110. Qxf3 {[%clk 0:00:04]}  gxf2 {[%clk 0:00:02]} 111. Bb2+ {[%clk 0:00:05]} 1-0


[Site "https://www.chess.com"]

[Event "Titled Tuesday Blitz November 15 Late 2022"]
[White "Jobava, Baadur"]
[Black "Sjugirov, Sanan"]
[WhiteFideId "13601520"]
[BlackFideId "4189302"]
[WhiteElo "2582"]
[BlackElo "2611"]
[Result "1-0"]
[Round "08"]
[TimeControl "180+1"]
[Date "2022.11.15"]
[WhiteClock "0:00:12"]
[BlackClock "0:00:05"]

1. e4 {[%clk 0:03:00]}  e5 {[%clk 0:02:54]} 2. Nf3 {[%clk 0:03:00]}  Nc6 {[%clk 0:02:54]} 3. Bc4 {[%clk 0:02:59]}  Bc5 {[%clk 0:02:53]} 4. c3 {[%clk 0:02:59]}  Nf6 {[%clk 0:02:52]} 5. d4 {[%clk 0:03:00]}  exd4 {[%clk 0:02:52]} 6. e5 {[%clk 0:03:00]}  d5 {[%clk 0:02:48]} 7. Be2 {[%clk 0:03:01]}  Ne4 {[%clk 0:02:48]} 8. cxd4 {[%clk 0:03:01]}  Bb6 {[%clk 0:02:39]} 9. Nc3 {[%clk 0:03:01]}  O-O {[%clk 0:02:36]} 10. Be3 {[%clk 0:03:02]}  Ba5 {[%clk 0:02:30]} 11. Rc1 {[%clk 0:02:58]}  f6 {[%clk 0:02:28]} 12. exf6 {[%clk 0:02:58]}  Qxf6 {[%clk 0:02:24]} 13. O-O {[%clk 0:02:57]}  Bxc3 {[%clk 0:02:24]} 14. bxc3 {[%clk 0:02:58]}  Be6 {[%clk 0:02:15]} 15. Ne1 {[%clk 0:02:34]}  Rae8 {[%clk 0:02:11]} 16. Nd3 {[%clk 0:02:33]}  Kh8 {[%clk 0:02:00]} 17. Re1 {[%clk 0:02:18]}  Bf5 {[%clk 0:01:51]} 18. Bf1 {[%clk 0:02:17]}  Ne7 {[%clk 0:01:33]} 19. Bf4 {[%clk 0:01:32]}  c6 {[%clk 0:01:27]} 20. Be5 {[%clk 0:01:23]}  Qh6 {[%clk 0:01:18]} 21. f3 {[%clk 0:01:23]}  Nd6 {[%clk 0:01:15]} 22. Bf4 {[%clk 0:01:11]}  Qf6 {[%clk 0:01:15]} 23. Be5 {[%clk 0:01:10]}  Qh6 {[%clk 0:01:14]} 24. Nc5 {[%clk 0:00:55]}  b6 {[%clk 0:01:08]} 25. Na6 {[%clk 0:00:56]}  Bc8 {[%clk 0:00:51]} 26. Nb4 {[%clk 0:00:51]}  a5 {[%clk 0:00:45]} 27. Nd3 {[%clk 0:00:52]}  Nc4 {[%clk 0:00:40]} 28. Rc2 {[%clk 0:00:38]}  Ng6 {[%clk 0:00:20]} 29. Rce2 {[%clk 0:00:34]}  Bd7 {[%clk 0:00:20]} 30. Bc7 {[%clk 0:00:27]}  Qg5 {[%clk 0:00:13]} 31. Rxe8 {[%clk 0:00:26]}  Rxe8 {[%clk 0:00:14]} 32. Rxe8+ {[%clk 0:00:26]}  Bxe8 {[%clk 0:00:15]} 33. Qe1 {[%clk 0:00:27]}  Bd7 {[%clk 0:00:13]} 34. Bg3 {[%clk 0:00:18]}  h6 {[%clk 0:00:10]} 35. h4 {[%clk 0:00:14]}  Qf6 {[%clk 0:00:07]} 36. h5 {[%clk 0:00:13]}  Ne7 {[%clk 0:00:05]} 37. Bh4 {[%clk 0:00:12]} 1-0


[Site "https://www.chess.com"]